fUST/lending_fUST_20250817
["ID","MTS","AMOUNT","RATE_DAILY","PERIOD"]
[379691306,1755371458270,-480.0,0.00020915,2]
[379691307,1755371458387,-480.0,0.00020915,2]
[379691308,1755371458397,-480.0,0.00020915,2]
[379691309,1755371458406,-480.0,0.00020915,2]
[379691310,1755371458415,-480.0,0.00020915,2]
[379691311,1755371458425,-480.0,0.00020915,2]
[379691312,1755371458434,-480.0,0.00020915,2]
[379691313,1755371458443,-480.0,0.00020915,2]
[379691314,1755371458454,-480.0,0.00020915,2]
[379691315,1755371458463,-480.0,0.00020915,2]
[379691316,1755371458473,-480.0,0.00020915,2]
[379691317,1755371458482,-420.0,0.00020915,2]
[379691318,1755371458492,-480.0,0.00020915,2]
[379691319,1755371458502,-480.0,0.00020915,2]
[379691320,1755371458513,-480.0,0.00020915,2]
[379691321,1755371458531,-480.0,0.00020915,2]
[379691322,1755371458563,-480.0,0.00020915,2]
[379691323,1755371458575,-480.0,0.00020915,2]
[379691324,1755371458585,-480.0,0.00020915,2]
[379691325,1755371458594,-480.0,0.00020915,2]
[379691326,1755371458603,-480.0,0.00020915,2]
[379691327,1755371458613,-480.0,0.00020915,2]
[379691328,1755371458622,-480.0,0.00020915,2]
[379691329,1755371458631,-485.55,0.00020915,2]
[379691330,1755371458640,-381.96431769,0.00020915,2]
[379691331,1755371458650,-480.0,0.00020915,2]
[379691332,1755371458661,-480.0,0.00020915,2]
[379691333,1755371458675,-543.22725475,0.00020915,2]
[379691334,1755371458684,-440.0,0.00020915,2]
[379691335,1755371458692,-480.0,0.00020915,2]
[379691336,1755371458703,-492.49,0.00020915,2]
[379691337,1755371458712,-388.06794214,0.00020915,2]
[379691338,1755371458721,-420.89232818,0.00020915,2]
[379691339,1755371458730,-480.0,0.00020915,2]
[379691340,1755371458739,-440.0,0.00020915,2]
[379691341,1755371458749,-480.0,0.00020915,2]
[379691342,1755371458758,-168.0,0.00020959,2]
[379691343,1755371458767,-800.0,0.00020968,2]
[379691344,1755371458777,-500.0,0.00020973,2]
[379691345,1755371458786,-500.0,0.00020973,2]
[379691346,1755371458795,-500.0,0.00020973,2]
[379691347,1755371458804,-484.81535733,0.00020973,2]
[379691348,1755371458814,-500.0,0.00020973,2]
[379691349,1755371458823,-500.0,0.00020973,2]
[379691350,1755371458832,-543.59259108,0.00020973,2]
[379691351,1755371458842,-500.0,0.00020973,2]
[379691352,1755371458851,-200.0,0.00020978,20]
[379691353,1755371458861,-200.0,0.00020978,20]
[379691354,1755371458871,-200.0,0.00020978,20]
[379691355,1755371458881,-200.0,0.00020978,20]
[379691356,1755371458891,-200.0,0.00020978,20]
[379691357,1755371458900,-200.0,0.00020978,20]
[379691358,1755371458909,-200.0,0.00020978,20]
[379691359,1755371458919,-200.0,0.00020978,20]
[379691360,1755371458928,-200.0,0.00020978,20]
[379691361,1755371458938,-200.0,0.00020978,20]
[379691362,1755371458947,-600.0,0.00020979,20]
[379691363,1755371458958,-290.055291,0.0002098,2]
[379691364,1755371458967,-290.055291,0.0002098,2]
[379691365,1755371458977,-213.088378,0.0002098,2]
[379691366,1755371458986,-20000.0,0.00021,30]
[379691367,1755371458995,-40513.13783203,0.00021,2]
[379691368,1755371459005,-17331.80015858,0.00021,2]
[379691369,1755371459015,-151.0,0.00021,2]
[379691370,1755371459024,-151.0,0.00021,2]
[379691371,1755371459034,-151.0,0.00021,2]
[379691372,1755371459044,-276.926434,0.00021,2]
[379691373,1755371459053,-358.81,0.00021,2]
[379691374,1755371459063,-181.712628,0.00021,2]
[379691375,1755371459072,-181.712628,0.00021,2]
[379691376,1755371459082,-151.0,0.00021,2]
[379691377,1755371459091,-151.0,0.00021,2]
[379691378,1755371459108,-215.224806,0.00021,2]
[379691379,1755371459118,-215.224806,0.00021,2]
[379691380,1755371459127,-12675.74622655,0.00021,30]
[379691381,1755371459137,-199.074138,0.00021,2]
[379691382,1755371459146,-199.074138,0.00021,2]
[379691383,1755371459164,-251.066496,0.00021,2]
[379691384,1755371459173,-844.456935,0.00021,2]
[379691385,1755371459184,-844.456935,0.00021,2]
[379691386,1755371459193,-270.386051,0.00021,2]
[379691387,1755371459203,-270.386057,0.00021,2]
[379691388,1755371459212,-151.0,0.00021,2]
[379691389,1755371459221,-151.0,0.00021,2]
[379691390,1755371459231,-166.319385,0.00021,2]
[379691391,1755371459240,-166.319385,0.00021,2]
[379691392,1755371459250,-166.319385,0.00021,2]
[379691393,1755371459260,-166.319385,0.00021,2]
[379691394,1755371459270,-290.055291,0.00021,2]
[379691395,1755371459279,-290.055291,0.00021,2]
[379691396,1755371459289,-170.670318,0.00021,2]
[379691397,1755371459298,-170.670318,0.00021,2]
[379691398,1755371459307,-170.670318,0.00021,2]
[379691399,1755371459316,-170.670318,0.00021,2]
[379691400,1755371459326,-260.794866,0.00021,2]
[379691401,1755371459336,-260.794866,0.00021,2]
[379691402,1755371459345,-260.794866,0.00021,2]
[379691403,1755371459355,-260.794866,0.00021,2]
[379691404,1755371459364,-151.0,0.00021,2]
[379691405,1755371459373,-151.0,0.00021,2]
[379691406,1755371459385,-151.0,0.00021,2]
[379691407,1755371459396,-151.0,0.00021,2]
[379691408,1755371459406,-462.1417622,0.00021,30]
[379691409,1755371459415,-417.15472785,0.00021,30]
[379691410,1755371459424,-212.122627,0.00021,2]
[379691411,1755371459434,-212.122627,0.00021,2]
[379691412,1755371459444,-160.0,0.00021,30]
[379691413,1755371459453,-212.122627,0.00021,2]
[379691414,1755371459462,-212.122627,0.00021,2]
[379691415,1755371459472,-151.0,0.00021,2]
[379691416,1755371459481,-151.0,0.00021,2]
[379691417,1755371459491,-286.307208,0.00021,2]
[379691418,1755371459501,-286.307208,0.00021,2]
[379691419,1755371459511,-286.307208,0.00021,2]
[379691420,1755371459521,-286.307206,0.00021,2]
[379691421,1755371459531,-620.0,0.00021014,2]
[379691422,1755371459540,-480.0,0.00021014,2]
[379691423,1755371459550,-480.0,0.00021014,2]
[379691424,1755371459559,-175.42955997,0.00021014,2]
[379691425,1755371459569,-440.0,0.00021014,2]
[379691426,1755371459579,-480.0,0.00021014,2]
[379691427,1755371459588,-480.0,0.00021014,2]
[379691428,1755371459598,-166.319385,0.00021014,2]
[379691429,1755371459607,-480.0,0.00021014,2]
[379691430,1755371459616,-166.319381,0.00021014,2]
[379691431,1755371459625,-290.055291,0.00021014,2]
[379691432,1755371459635,-290.055291,0.00021014,2]
[379691433,1755371459646,-170.670318,0.00021014,2]
[379691434,1755371459654,-170.670318,0.00021014,2]
[379691435,1755371459664,-17.27480226,0.00021014,2]
[379691436,1755371460706,-157.3210001,0.00020261,2]
[379691437,1755371460717,-480.0,0.00020365,2]
[379691438,1755371460726,-563.57,0.00020365,2]
[379691439,1755371460736,-2361.73,0.00020466,2]
[379691440,1755371460746,-480.0,0.00020638,2]
[379691441,1755371460756,-480.0,0.00020639,2]
[379691442,1755371460766,-2361.73,0.0002074,2]
[379691443,1755371460776,-480.0,0.00020912,2]
[379691444,1755371460785,-480.0,0.00020913,2]
[379691445,1755371460795,-480.0,0.00020915,2]
[379691446,1755371460804,-480.0,0.00021014,2]
[379691447,1755371460813,-480.0,0.00021014,2]
[379691448,1755371460823,-543.46952339,0.00021014,2]
[379691449,1755371460832,-480.0,0.00021014,2]
[379691450,1755371460841,-480.0,0.00021014,2]
[379691451,1755371460850,-480.0,0.00021014,2]
[379691452,1755371460860,-511.35303562,0.00021014,2]
[379691453,1755371460869,-480.0,0.00021014,2]
[379691454,1755371460878,-151.0,0.00021014,2]
[379691455,1755371460887,-480.0,0.00021014,2]
[379691456,1755371460897,-151.0,0.00021014,2]
[379691457,1755371460906,-480.0,0.00021014,2]
[379691458,1755371460916,-480.0,0.00021014,2]
[379691459,1755371460925,-480.0,0.00021014,2]
[379691460,1755371460934,-480.0,0.00021014,2]
[379691461,1755371460944,-480.0,0.00021014,2]
[379691462,1755371460954,-495.88,0.00021014,2]
[379691463,1755371460963,-868.01,0.00021014,2]
[379691464,1755371460973,-733.22,0.00021014,2]
[379691465,1755371460982,-901.38,0.00021014,2]
[379691466,1755371460991,-480.0,0.00021014,2]
[379691467,1755371461001,-480.0,0.00021014,2]
[379691468,1755371461011,-480.0,0.00021014,2]
[379691469,1755371461020,-670.5,0.00021014,2]
[379691470,1755371461030,-480.0,0.00021014,2]
[379691471,1755371461040,-2106.63,0.00021014,2]
[379691472,1755371461049,-480.0,0.00021014,2]
[379691473,1755371461058,-614.25,0.00021014,2]
[379691474,1755371461067,-480.0,0.00021014,2]
[379691475,1755371461077,-480.0,0.00021014,2]
[379691476,1755371461086,-480.0,0.00021014,2]
[379691477,1755371461096,-480.0,0.00021014,2]
[379691478,1755371461105,-480.0,0.00021014,2]
[379691479,1755371461115,-14516.29,0.00021014,2]
[379691480,1755371461125,-480.0,0.00021014,2]
[379691481,1755371461134,-500.0,0.00021014,2]
[379691482,1755371461144,-539.47,0.00021014,2]
[379691483,1755371461153,-698.38,0.00021014,2]
[379691484,1755371461162,-10105.08,0.00021014,2]
[379691485,1755371461171,-301.782346,0.00021015,2]
[379691486,1755371461181,-260.794866,0.00021015,2]
[379691487,1755371461191,-260.794866,0.00021015,2]
[379691488,1755371461200,-212.122627,0.00021015,2]
[379691489,1755371461211,-212.122627,0.00021015,2]
[379691490,1755371461221,-151.0,0.00021015,2]
[379691491,1755371461230,-151.0,0.00021016,2]
[379691492,1755371461239,-561.4750954,0.00021016,2]
[379691493,1755371461249,-607.11313872,0.00021016,2]
[379691494,1755371461258,-151.0,0.00021016,2]
[379691495,1755371461267,-151.0,0.00021016,2]
[379691496,1755371461276,-276.14592904,0.00021016,2]
[379691497,1755371461286,-151.0,0.00021016,2]
[379691498,1755371461296,-500.0,0.00021016,2]
[379691499,1755371461305,-1175.0,0.00021016,2]
[379691500,1755371461314,-217.22312735,0.00021016,2]
[379691501,1755371461323,-151.0,0.00021016,2]
[379691502,1755371461332,-500.0,0.00021016,2]
[379691503,1755371461342,-151.0,0.00021016,2]
[379691504,1755371461351,-154.23870313,0.00021016,2]
[379691505,1755371461360,-198.0,0.00021016,2]
[379691506,1755371461369,-500.0,0.00021016,2]
[379691507,1755371461378,-500.0,0.00021016,2]
[379691508,1755371461387,-151.0,0.00021016,2]
[379691509,1755371461397,-480.0,0.00021016,2]
[379691510,1755371461407,-930.71,0.00021016,2]
[379691511,1755371461416,-480.0,0.00021016,2]
[379691512,1755371461425,-569.11,0.00021016,2]
[379691513,1755371461438,-480.0,0.00021016,2]
[379691514,1755371461447,-480.0,0.00021016,2]
[379691515,1755371461457,-480.0,0.00021016,2]
[379691516,1755371461466,-480.0,0.00021016,2]
[379691517,1755371461476,-480.0,0.00021016,2]
[379691518,1755371461487,-359.34405251,0.00021016,2]
[379691519,1755371461496,-480.0,0.00021016,2]
[379691520,1755371461506,-500.0,0.00021016,2]
[379691521,1755371461515,-480.0,0.00021016,2]
[379691522,1755371461525,-480.0,0.00021016,2]
[379691523,1755371461534,-480.0,0.00021016,2]
[379691524,1755371461543,-480.0,0.00021016,2]
[379691525,1755371461553,-784.25,0.00021016,2]
[379691526,1755371461562,-480.0,0.00021016,2]
[379691527,1755371461571,-581.12333982,0.00021016,2]
[379691528,1755371461581,-480.0,0.00021016,2]
[379691529,1755371461591,-1009.83,0.00021016,2]
[379691530,1755371461600,-480.0,0.00021016,2]
[379691531,1755371461609,-480.0,0.00021016,2]
[379691532,1755371461618,-480.0,0.00021016,2]
[379691533,1755371461628,-480.0,0.00021016,2]
[379691534,1755371461637,-748.81,0.00021016,2]
[379691535,1755371461646,-480.0,0.00021016,2]
[379691536,1755371461656,-480.0,0.00021016,2]
[379691537,1755371461666,-480.0,0.00021016,2]
[379691538,1755371461678,-480.0,0.00021016,2]
[379691539,1755371461688,-480.0,0.00021016,2]
[379691540,1755371461697,-480.0,0.00021016,2]
[379691541,1755371461708,-290.055291,0.00021016,2]
[379691542,1755371461718,-290.055291,0.00021016,2]
[379691543,1755371461727,-408.65784477,0.00021016,2]
[379691544,1755371461737,-480.0,0.00021016,2]
[379691545,1755371461748,-480.0,0.00021016,2]
[379691546,1755371461758,-170.670318,0.00021016,2]
[379691547,1755371461768,-170.670318,0.00021016,2]
[379691548,1755371461778,-822.77,0.00021016,2]
[379691549,1755371461787,-480.0,0.00021016,2]
[379691550,1755371461796,-480.0,0.00021016,2]
[379691551,1755371461805,-1093.71,0.00021016,2]
[379691552,1755371461814,-480.0,0.00021016,2]
[379691553,1755371461823,-480.0,0.00021016,2]
[379691554,1755371461832,-260.794866,0.00021016,2]
[379691555,1755371461842,-260.794866,0.00021016,2]
[379691556,1755371461851,-480.0,0.00021016,2]
[379691557,1755371461861,-480.0,0.00021016,2]
[379691558,1755371461870,-480.0,0.00021016,2]
[379691559,1755371461879,-480.0,0.00021016,2]
[379691560,1755371461889,-488.28,0.00021016,2]
[379691561,1755371461898,-480.0,0.00021016,2]
[379691562,1755371461907,-1928.44,0.00021016,2]
[379691563,1755371461916,-452.14795395,0.00021016,2]
[379691564,1755371461926,-151.0,0.00021016,2]
[379691565,1755371461935,-539.36480256,0.00021016,2]
[379691566,1755371462717,4638.32501583,0.0002,2]
[379691567,1755371462740,10000.0,0.0002,2]
[379691568,1755371462764,10000.0,0.0002,2]
[379691569,1755371462792,5587.88165817,0.0002,2]
[379691570,1755371472784,1260.40540258,0.000189,2]
[379691571,1755371703637,207.467989,0.00019863,2]
[379691572,1755371774064,840.27026838,0.000189,2]
[379691573,1755371775025,1079.0,0.000201,10]
[379691578,1755372075386,560.18017892,0.000189,2]
[379691585,1755372154407,159.1296891,0.00019656,2]
[379691589,1755372251217,305.66481385,0.00013699,2]
[379691590,1755372251240,163.25734515,0.00013699,2]
[379691591,1755372298276,1998.15067529,0.00020087,2]
[379691601,1755372383087,373.45345262,0.000189,2]
[379691605,1755372459535,278.24989665,0.00020087,2]
[379691607,1755372512867,5012.07198146,0.0002,2]
[379691608,1755372512980,2174.81664883,0.0002,2]
[379691609,1755372513012,47825.15335117,0.0002,2]
[379691610,1755372518620,15243.75810563,0.0002,2]
[379691611,1755372518966,10875.23286374,0.00019,2]
[379691612,1755372520970,5132.0554021,0.0002,2]
[379691613,1755372593940,471.795333,0.00019263,2]
[379691631,1755372632553,-1248.28683539,0.00020163,2]
[379691632,1755372632607,-849.52021497,0.00020163,2]
[379691633,1755372632617,-468.922159,0.00020187,2]
[379691634,1755372632626,-272.0,0.00020261,2]
[379691635,1755372632635,-300.0,0.00020261,2]
[379691636,1755372632645,-300.0,0.00020261,2]
[379691637,1755372632655,-1200.0,0.00020261,2]
[379691638,1755372632665,-152.55512621,0.00020262,2]
[379691639,1755372632675,-500.0,0.00020262,2]
[379691640,1755372632685,-489.11767295,0.00020262,2]
[379691642,1755372632694,-178.04334676,0.00020262,2]
[379691644,1755372632703,-480.0,0.00020262,2]
[379691645,1755372632717,-793.06,0.00020262,2]
[379691647,1755372632726,-480.0,0.00020262,2]
[379691649,1755372632735,-777.76,0.00020262,2]
[379691651,1755372632745,-579.18681434,0.00020262,2]
[379691653,1755372632755,-1873.8695186,0.00020262,2]
[379691781,1755372638631,-1214.67976761,0.00020262,2]
[379691783,1755372638643,-749.8638399,0.00020262,2]
[379691819,1755372640484,-335.08687389,0.00020262,2]
[379691820,1755372640494,-436.9181495,0.00020262,2]
[379691821,1755372640504,-480.0,0.00020262,2]
[379691822,1755372640514,-480.0,0.00020262,2]
[379691823,1755372640523,-480.0,0.00020262,2]
[379691824,1755372640532,-480.0,0.00020262,2]
[379691825,1755372640541,-460.0,0.00020262,2]
[379691826,1755372640551,-480.0,0.00020262,2]
[379691827,1755372640560,-748.98,0.00020262,2]
[379691828,1755372640569,-440.0,0.00020262,2]
[379691829,1755372640578,-480.0,0.00020263,2]
[379691830,1755372640588,-480.0,0.00020263,2]
[379691831,1755372640597,-480.0,0.00020263,2]
[379691832,1755372640607,-480.0,0.00020263,2]
[379691833,1755372640616,-1304.1,0.00020263,2]
[379691834,1755372640625,-2341.94,0.00020263,2]
[379691835,1755372640635,-480.0,0.00020263,2]
[379691836,1755372640644,-1083.27,0.00020263,2]
[379691837,1755372640653,-460.0,0.00020263,2]
[379691838,1755372640663,-480.0,0.00020263,2]
[379691839,1755372640672,-480.0,0.00020263,2]
[379691840,1755372640681,-815.16,0.00020263,2]
[379691841,1755372640691,-460.0,0.00020263,2]
[379691842,1755372640701,-500.0,0.00020263,2]
[379691843,1755372640710,-506.98,0.00020263,2]
[379691844,1755372640719,-480.0,0.00020263,2]
[379691845,1755372640729,-843.26,0.00020263,2]
[379691846,1755372640738,-1004.82,0.00020263,2]
[379691848,1755372640747,-536.19,0.00020263,2]
[379691850,1755372640756,-922.35,0.00020263,2]
[379691852,1755372640765,-480.0,0.00020263,2]
[379691854,1755372640775,-460.0,0.00020263,2]
[379691856,1755372640784,-480.0,0.00020263,2]
[379691858,1755372640793,-460.0,0.00020263,2]
[379691860,1755372640803,-480.0,0.00020263,2]
[379691862,1755372640811,-986.99,0.00020263,2]
[379691864,1755372640821,-480.0,0.00020263,2]
[379691866,1755372640830,-1226.04,0.00020263,2]
[379691868,1755372640839,-732.24,0.00020263,2]
[379691870,1755372640848,-480.0,0.00020263,2]
[379691871,1755372640857,-1534.2,0.00020263,2]
[379691873,1755372640866,-892.11,0.00020263,2]
[379691875,1755372640875,-480.0,0.00020263,2]
[379691877,1755372640885,-997.31,0.00020263,2]
[379691880,1755372640896,-2919.8,0.00020263,2]
[379691882,1755372640905,-480.0,0.00020263,2]
[379691884,1755372640914,-1284.11,0.00020263,2]
[379691886,1755372640924,-460.68890505,0.00020263,2]
[379691888,1755372640933,-524.98,0.00020263,2]
[379691889,1755372640942,-3815.23,0.00020263,2]
[379691892,1755372640951,-480.0,0.00020263,2]
[379691893,1755372640961,-480.0,0.00020263,2]
[379691896,1755372640970,-480.0,0.00020263,2]
[379691898,1755372640980,-480.0,0.00020263,2]
[379691900,1755372640990,-480.0,0.00020263,2]
[379691902,1755372640999,-460.0,0.00020263,2]
[379691903,1755372641009,-571.23,0.00020263,2]
[379691905,1755372641019,-480.0,0.00020263,2]
[379691907,1755372641028,-480.0,0.00020263,2]
[379691909,1755372641037,-480.0,0.00020263,2]
[379691911,1755372641047,-480.0,0.00020263,2]
[379691913,1755372641056,-1127.87,0.00020263,2]
[379691915,1755372641066,-480.0,0.00020263,2]
[379691917,1755372641076,-2803.85,0.00020263,2]
[379691919,1755372641088,-480.0,0.00020263,2]
[379691921,1755372641098,-728.97,0.00020263,2]
[379691923,1755372641107,-929.22,0.00020263,2]
[379691925,1755372641117,-759.41,0.00020263,2]
[379691927,1755372641126,-480.0,0.00020263,2]
[379691929,1755372641136,-480.0,0.00020263,2]
[379691931,1755372641145,-480.0,0.00020263,2]
[379691933,1755372641154,-480.0,0.00020263,2]
[379691935,1755372641167,-896.58,0.00020263,2]
[379691937,1755372641177,-5206.99,0.00020263,2]
[379691939,1755372641194,-480.0,0.00020263,2]
[379691942,1755372641223,-480.0,0.00020263,2]
[379691944,1755372641242,-374.08800576,0.00020263,2]
[379691946,1755372641252,-480.0,0.00020263,2]
[379691948,1755372641261,-480.0,0.00020263,2]
[379691950,1755372641271,-480.0,0.00020263,2]
[379691952,1755372641281,-1178.31,0.00020263,2]
[379691954,1755372641290,-480.0,0.00020263,2]
[379691956,1755372641300,-480.0,0.00020263,2]
[379691958,1755372641309,-609.53713742,0.00020263,2]
[379691960,1755372641318,-480.0,0.00020263,2]
[379691962,1755372641328,-480.0,0.00020263,2]
[379691964,1755372641337,-460.0,0.00020263,2]
[379691966,1755372641347,-282.53900194,0.00020263,2]
[379691968,1755372641356,-1168.16,0.00020263,2]
[379691970,1755372641365,-7389.1,0.00020263,2]
[379691972,1755372641375,-1559.11,0.00020263,2]
[379691974,1755372641384,-404.62334343,0.00020263,2]
[379692091,1755372647259,-480.0,0.00020262,2]
[379692092,1755372647285,-480.0,0.00020262,2]
[379692093,1755372647294,-284.39472519,0.00020262,2]
[379692094,1755372647306,-195.60527481,0.00020262,2]
[379692095,1755372647315,-480.0,0.00020262,2]
[379692096,1755372647325,-151.60529942,0.00020263,2]
[379692097,1755372684444,248.96896841,0.000189,2]
[379692098,1755372689045,207.467989,0.00019863,2]
[379692099,1755372743565,151.0,0.00027863,120]
[379692100,1755372800088,160.0,0.0002,3]
[379692101,1755372907348,687.0,0.00028,120]
[379692102,1755372985755,165.97931227,0.000189,2]
[379692105,1755373287280,150.0,0.000189,2]
[379692106,1755373347003,1835.5811691,0.00020062,2]
[379692107,1755373406977,160.0,0.0002,3]
[379692108,1755373409599,168.0,0.00019936,2]
[379692109,1755373414624,168.0,0.00019874,2]
[379692114,1755373476397,329.7444596,0.00028767,120]
[379692115,1755373533944,459.654754,0.00013699,2]
[379692116,1755373537513,1606.13352291,0.00020062,2]
[379692118,1755373620911,168.0,0.00019742,2]
[379692120,1755373630827,207.467989,0.00019863,2]
[379692121,1755373689416,235.897666,0.00019161,2]
[379692122,1755373727610,1405.36683259,0.00020061,2]
[379692144,1755373832806,-168.0,0.00020134,2]
[379692146,1755373832816,-182.99,0.00020153,3]
[379692148,1755373832825,-548.99,0.00020153,3]
[379692149,1755373832834,-1200.0,0.00020159,2]
[379692151,1755373832843,-500.0,0.0002016,2]
[379692153,1755373832853,-500.0,0.0002016,2]
[379692155,1755373832862,-440.0,0.0002016,2]
[379692157,1755373832871,-788.45,0.0002016,2]
[379692158,1755373832880,-480.0,0.0002016,2]
[379692159,1755373832889,-480.0,0.0002016,2]
[379692160,1755373832898,-405.2992918,0.0002016,2]
[379692191,1755373838814,-74.7007082,0.0002016,2]
[379692192,1755373838825,-480.0,0.0002016,2]
[379692193,1755373838834,-488.71155435,0.00020161,2]
[379692194,1755373838843,-480.0,0.00020161,2]
[379692195,1755373838854,-480.0,0.00020161,2]
[379692196,1755373838864,-776.55,0.00020161,2]
[379692197,1755373838874,-480.0,0.00020161,2]
[379692198,1755373838884,-480.0,0.00020161,2]
[379692199,1755373838894,-460.97367029,0.00020161,2]
[379692200,1755373838904,-480.0,0.00020161,2]
[379692201,1755373838916,-480.0,0.00020161,2]
[379692202,1755373838926,-408.76181714,0.00020161,2]
[379692203,1755373838935,-480.0,0.00020161,2]
[379692204,1755373838945,-519.08195763,0.00020161,2]
[379692205,1755373838954,-480.0,0.00020161,2]
[379692206,1755373838964,-480.0,0.00020161,2]
[379692207,1755373838973,-855.98,0.00020161,2]
[379692208,1755373838983,-480.0,0.00020161,2]
[379692209,1755373838992,-524.58734692,0.00020161,2]
[379692210,1755373839001,-480.0,0.00020161,2]
[379692211,1755373839011,-480.0,0.00020161,2]
[379692212,1755373839021,-480.0,0.00020161,2]
[379692213,1755373839031,-460.0,0.00020161,2]
[379692214,1755373839041,-480.0,0.00020161,2]
[379692215,1755373839051,-480.0,0.00020161,2]
[379692216,1755373839060,-480.0,0.00020161,2]
[379692217,1755373839070,-465.55179134,0.00020161,2]
[379692218,1755373839079,-480.0,0.00020161,2]
[379692219,1755373839089,-480.0,0.00020161,2]
[379692220,1755373839099,-480.0,0.00020161,2]
[379692221,1755373839109,-1094.39,0.00020161,2]
[379692222,1755373839120,-172.76592853,0.00020161,2]
[379692223,1755373839130,-7270.61,0.00020161,2]
[379692224,1755373839140,-480.0,0.00020161,2]
[379692225,1755373839150,-480.0,0.00020161,2]
[379692226,1755373839159,-480.0,0.00020161,2]
[379692227,1755373839169,-480.0,0.00020161,2]
[379692228,1755373839179,-480.0,0.00020161,2]
[379692229,1755373839188,-480.0,0.00020161,2]
[379692230,1755373839197,-984.49,0.00020161,2]
[379692231,1755373839206,-308.40056272,0.00020161,2]
[379692232,1755373839216,-480.0,0.00020161,2]
[379692233,1755373839225,-480.0,0.00020161,2]
[379692234,1755373839235,-480.0,0.00020161,2]
[379692235,1755373839244,-480.0,0.00020161,2]
[379692236,1755373839254,-480.0,0.00020161,2]
[379692237,1755373839263,-480.0,0.00020161,2]
[379692238,1755373839273,-480.0,0.00020161,2]
[379692239,1755373839282,-1673.94,0.00020161,2]
[379692240,1755373839291,-1070.68,0.00020161,2]
[379692241,1755373839301,-480.0,0.00020161,2]
[379692242,1755373839310,-480.0,0.00020161,2]
[379692243,1755373839320,-480.0,0.00020161,2]
[379692244,1755373839330,-523.11,0.00020161,2]
[379692245,1755373839339,-480.0,0.00020161,2]
[379692246,1755373839348,-480.0,0.00020161,2]
[379692247,1755373839357,-480.0,0.00020161,2]
[379692248,1755373839367,-480.0,0.00020161,2]
[379692249,1755373839377,-547.12,0.00020161,2]
[379692250,1755373839386,-480.0,0.00020161,2]
[379692251,1755373839395,-480.0,0.00020161,2]
[379692252,1755373839405,-3031.49,0.00020161,2]
[379692253,1755373839414,-528.14,0.00020161,2]
[379692254,1755373839423,-480.0,0.00020161,2]
[379692255,1755373839432,-1095.62,0.00020161,2]
[379692256,1755373839441,-4245.3,0.00020161,2]
[379692257,1755373839450,-586.01,0.00020161,2]
[379692258,1755373839460,-240.8088547,0.00020161,2]
[379692259,1755373839469,-522.63,0.00020161,2]
[379692260,1755373839479,-480.0,0.00020161,2]
[379692261,1755373839488,-480.0,0.00020161,2]
[379692262,1755373839498,-480.0,0.00020161,2]